[Event "*** Titled Tuesday 3|2 Blitz (Early)"]
[Site "Chess.com"]
[Date "2016.12.06"]
[Round "2"]
[White "RitvarsReimanis"]
[Black "Gabrielian_Artur"]
[Result "0-1"]
[WhiteElo "2412"]
[BlackElo "2579"]
[TimeControl "180+2"]
[EndTime "11:20:13 PST"]
[Termination "Gabrielian_Artur won by resignation"]

1. d4 {[%clk 0:03:00.6]} 1... Nf6 {[%clk 0:03:00.7]} 2. c4 {[%clk 0:03:01.1]}
2... c5 {[%clk 0:03:01.9]} 3. d5 {[%clk 0:03:01.9]} 3... e6 {[%clk 0:03:03.1]}
4. Nc3 {[%clk 0:03:02.5]} 4... exd5 {[%clk 0:03:04.5]} 5. cxd5 {[%clk
0:03:03.7]} 5... d6 {[%clk 0:03:06]} 6. h3 {[%clk 0:03:04.8]} 6... g6 {[%clk
0:03:06.6]} 7. Nf3 {[%clk 0:03:04.4]} 7... Bg7 {[%clk 0:03:07.4]} 8. e4 {[%clk
0:03:05.6]} 8... O-O {[%clk 0:03:04.7]} 9. Bd3 {[%clk 0:03:06.4]} 9... b5 {[%clk
0:03:03.8]} 10. O-O {[%clk 0:02:47.8]} 10... b4 {[%clk 0:02:56.8]} 11. Ne2
{[%clk 0:02:33.5]} 11... Ba6 {[%clk 0:02:57.5]} 12. Bxa6 {[%clk 0:02:29.1]}
12... Nxa6 {[%clk 0:02:58.4]} 13. Qd3 {[%clk 0:02:30.8]} 13... Qc8 {[%clk
0:02:44.1]} 14. Qc4 {[%clk 0:02:16.7]} 14... Re8 {[%clk 0:02:40.8]} 15. Ng3
{[%clk 0:02:17.1]} 15... Nd7 {[%clk 0:02:37.8]} 16. a3 {[%clk 0:02:06.8]} 16...
Nb6 {[%clk 0:02:34.6]} 17. Qb5 {[%clk 0:01:52.2]} 17... Nc7 {[%clk 0:01:58.5]}
18. Qc6 {[%clk 0:01:46.6]} 18... Qd7 {[%clk 0:01:54.6]} 19. Qxd7 {[%clk
0:01:40.3]} 19... Nxd7 {[%clk 0:01:55.5]} 20. axb4 {[%clk 0:01:42.2]} 20... cxb4
{[%clk 0:01:56.5]} 21. Ra4 {[%clk 0:01:36.3]} 21... a5 {[%clk 0:01:57.1]} 22.
Bf4 {[%clk 0:01:19.4]} 22... Nc5 {[%clk 0:01:57.9]} 23. Raa1 {[%clk 0:01:07.6]}
23... Nb5 {[%clk 0:01:56.9]} 24. Rab1 {[%clk 0:00:59.3]} 24... Nxe4 {[%clk
0:01:55.6]} 25. Rfc1 {[%clk 0:00:51.5]} 25... Nxg3 {[%clk 0:01:46.7]} 26. Bxg3
{[%clk 0:00:53.4]} 26... a4 {[%clk 0:01:48]} 27. Rc4 {[%clk 0:00:46.6]} 27... a3
{[%clk 0:01:16.5]} 28. Rxb4 {[%clk 0:00:46.6]} 28... axb2 {[%clk 0:01:17.5]} 29.
R1xb2 {[%clk 0:00:36.9]} 29... Bxb2 {[%clk 0:01:16.9]} 30. Rxb5 {[%clk
0:00:24.2]} 30... Ba3 {[%clk 0:01:16.9]} 31. Rb6 {[%clk 0:00:23.5]} 31... Bc5
{[%clk 0:01:17.5]} 32. Rc6 {[%clk 0:00:23.5]} 32... Ra1+ {[%clk 0:01:11.8]} 33.
Kh2 {[%clk 0:00:24]} 33... Rd1 {[%clk 0:01:12.5]} 34. Bxd6 {[%clk 0:00:22.9]}
34... Bxf2 {[%clk 0:01:13.4]} 35. Ne5 {[%clk 0:00:11.7]} 35... Bg1+ {[%clk
0:01:05.8]} 36. Kh1 {[%clk 0:00:12]} 36... Bc5+ {[%clk 0:01:04.7]} 37. Kh2
{[%clk 0:00:13.2]} 37... Bxd6 {[%clk 0:01:06]} 0-1

[Event "*** Titled Tuesday 3|2 Blitz (Early)"]
[Site "Chess.com"]
[Date "2016.12.06"]
[Round "2"]
[White "norwaytoadog"]
[Black "Ind1anStar"]
[Result "0-1"]
[WhiteElo "1938"]
[BlackElo "2149"]
[TimeControl "180+2"]
[EndTime "11:20:13 PST"]
[Termination "Ind1anStar won by resignation"]

1. e4 {[%clk 0:03:01.2]} 1... e6 {[%clk 0:02:58]} 2. d4 {[%clk 0:03:01.1]} 2...
d5 {[%clk 0:02:58.7]} 3. e5 {[%clk 0:03:01.8]} 3... c5 {[%clk 0:02:58.1]} 4. c3
{[%clk 0:03:02.9]} 4... Nc6 {[%clk 0:02:58.9]} 5. Nf3 {[%clk 0:03:03.3]} 5...
Bd7 {[%clk 0:03:00]} 6. a3 {[%clk 0:03:02.1]} 6... Nge7 {[%clk 0:03:00]} 7. Bd3
{[%clk 0:03:00.8]} 7... cxd4 {[%clk 0:02:59.3]} 8. cxd4 {[%clk 0:03:00.8]} 8...
Qb6 {[%clk 0:02:58.5]} 9. Be3 {[%clk 0:02:30.3]} 9... Qxb2 {[%clk 0:02:52.3]}
10. Nbd2 {[%clk 0:02:29.5]} 10... Qb6 {[%clk 0:02:52.6]} 11. O-O {[%clk
0:02:24.2]} 11... Ng6 {[%clk 0:02:53.3]} 12. Rb1 {[%clk 0:02:21.7]} 12... Qc7
{[%clk 0:02:50.7]} 13. h4 {[%clk 0:02:20.4]} 13... Bxa3 {[%clk 0:02:47.2]} 14.
h5 {[%clk 0:02:20.6]} 14... Nf8 {[%clk 0:02:43.3]} 15. h6 {[%clk 0:02:05.6]}
15... gxh6 {[%clk 0:02:37.3]} 16. Bxh6 {[%clk 0:02:05.5]} 16... Ng6 {[%clk
0:02:38.2]} 17. Rb3 {[%clk 0:02:04]} 17... Be7 {[%clk 0:02:31.4]} 18. Bb1 {[%clk
0:02:00.2]} 18... a5 {[%clk 0:02:27.7]} 19. Bg7 {[%clk 0:01:37.9]} 19... Rg8
{[%clk 0:02:25.5]} 20. Bf6 {[%clk 0:01:38.3]} 20... Bxf6 {[%clk 0:02:18.7]} 21.
exf6 {[%clk 0:01:38.9]} 21... Nb4 {[%clk 0:02:19]} 22. Ra3 {[%clk 0:01:29.3]}
22... Qf4 {[%clk 0:01:59.9]} 23. Qb3 {[%clk 0:01:22.4]} 23... Nc6 {[%clk
0:01:08]} 24. Qxb7 {[%clk 0:01:20.9]} 24... Rb8 {[%clk 0:01:08.8]} 25. Qa6
{[%clk 0:01:15.3]} 25... Qg4 {[%clk 0:01:06.5]} 26. Ne1 {[%clk 0:01:06.9]} 26...
Nxd4 {[%clk 0:01:00.4]} 27. Rg3 {[%clk 0:01:05]} 27... Ne2+ {[%clk 0:00:57.7]}
28. Kh2 {[%clk 0:00:56.5]} 28... Nxg3 {[%clk 0:00:55.5]} 29. fxg3 {[%clk
0:00:56.5]} 29... Qh5+ {[%clk 0:00:56.4]} 30. Kg1 {[%clk 0:00:56.7]} 30... Qg5
{[%clk 0:00:56.1]} 31. Nef3 {[%clk 0:00:51.5]} 31... Qxg3 {[%clk 0:00:52.7]} 32.
Qxa5 {[%clk 0:00:39]} 32... Nf4 {[%clk 0:00:50.3]} 33. Ne1 {[%clk 0:00:10.9]}
33... Ne2+ {[%clk 0:00:49.9]} 0-1

[Event "*** Titled Tuesday 3|2 Blitz (Early)"]
[Site "Chess.com"]
[Date "2016.12.06"]
[Round "2"]
[White "SmoothAsAHedgehog"]
[Black "Fandorine"]
[Result "0-1"]
[WhiteElo "2499"]
[BlackElo "2624"]
[TimeControl "180+2"]
[EndTime "11:20:29 PST"]
[Termination "Fandorine won by resignation"]

1. Nf3 {[%clk 0:03:02]} 1... Nf6 {[%clk 0:03:00.2]} 2. c4 {[%clk 0:03:02.5]}
2... b6 {[%clk 0:03:00.9]} 3. g3 {[%clk 0:03:04.1]} 3... Bb7 {[%clk 0:03:01.3]}
4. Bg2 {[%clk 0:03:05.7]} 4... e6 {[%clk 0:03:03]} 5. O-O {[%clk 0:03:06.2]}
5... Be7 {[%clk 0:03:04.6]} 6. b3 {[%clk 0:03:07.8]} 6... O-O {[%clk 0:03:05.6]}
7. Bb2 {[%clk 0:03:09.4]} 7... c5 {[%clk 0:03:05.2]} 8. e3 {[%clk 0:03:10.1]}
8... d5 {[%clk 0:03:05.7]} 9. Qe2 {[%clk 0:03:11]} 9... Nc6 {[%clk 0:03:06.2]}
10. Nc3 {[%clk 0:03:06.6]} 10... d4 {[%clk 0:02:08.8]} 11. exd4 {[%clk
0:03:05.3]} 11... cxd4 {[%clk 0:01:57.7]} 12. Nb5 {[%clk 0:02:47.5]} 12... d3
{[%clk 0:01:58.6]} 13. Qd1 {[%clk 0:02:47.2]} 13... a6 {[%clk 0:01:48.5]} 14.
Nc3 {[%clk 0:02:30.3]} 14... Nb4 {[%clk 0:01:31.4]} 15. Ne5 {[%clk 0:02:15.1]}
15... Bxg2 {[%clk 0:01:30]} 16. Kxg2 {[%clk 0:02:17]} 16... Qc7 {[%clk
0:01:29.6]} 17. f4 {[%clk 0:01:44]} 17... Rfd8 {[%clk 0:01:28.3]} 18. Qf3 {[%clk
0:01:42]} 18... Nc2 {[%clk 0:01:18.1]} 19. Rad1 {[%clk 0:01:41.9]} 19... Nd4
{[%clk 0:01:19.3]} 20. Qf2 {[%clk 0:01:26.9]} 20... Qb7+ {[%clk 0:01:16.4]} 21.
Kg1 {[%clk 0:01:25.2]} 21... Bc5 {[%clk 0:01:16.8]} 22. Qg2 {[%clk 0:01:00.5]}
22... Nxb3+ {[%clk 0:01:05.3]} 23. Kh1 {[%clk 0:00:59.9]} 23... Qxg2+ {[%clk
0:01:05.7]} 24. Kxg2 {[%clk 0:01:01.8]} 24... Na5 {[%clk 0:01:06.2]} 25. Na4
{[%clk 0:00:51]} 25... Rac8 {[%clk 0:01:07.4]} 26. Rc1 {[%clk 0:00:51.2]} 26...
Ne4 {[%clk 0:01:00.5]} 27. Bc3 {[%clk 0:00:39.9]} 27... Nxc3 {[%clk 0:00:47.7]}
28. Rxc3 {[%clk 0:00:41.8]} 28... Bd4 {[%clk 0:00:49.1]} 29. Rxd3 {[%clk
0:00:23.5]} 29... Bxe5 {[%clk 0:00:50]} 30. Rxd8+ {[%clk 0:00:24.5]} 30... Rxd8
{[%clk 0:00:51.9]} 31. fxe5 {[%clk 0:00:25.5]} 31... Rxd2+ {[%clk 0:00:53]} 32.
Kh3 {[%clk 0:00:25.9]} 32... Nxc4 {[%clk 0:00:53.8]} 33. Nc3 {[%clk 0:00:19.4]}
33... Nxe5 {[%clk 0:00:52.2]} 34. Rb1 {[%clk 0:00:19.8]} 34... f5 {[%clk
0:00:42.1]} 35. Re1 {[%clk 0:00:10.4]} 35... Nf3 {[%clk 0:00:39.6]} 36. Re2
{[%clk 0:00:11.5]} 36... Ng1+ {[%clk 0:00:40.6]} 0-1

[Event "*** Titled Tuesday 3|2 Blitz (Early)"]
[Site "Chess.com"]
[Date "2016.12.06"]
[Round "2"]
[White "Tash_Boy"]
[Black "Zaven_ChessMood"]
[Result "0-1"]
[WhiteElo "2477"]
[BlackElo "2838"]
[TimeControl "180+2"]
[EndTime "11:20:35 PST"]
[Termination "Zaven_ChessMood won by resignation"]

1. e4 {[%clk 0:02:43.4]} 1... c5 {[%clk 0:02:59.8]} 2. Nf3 {[%clk 0:02:44]} 2...
d6 {[%clk 0:03:01.1]} 3. d4 {[%clk 0:02:45.6]} 3... cxd4 {[%clk 0:03:02.8]} 4.
Nxd4 {[%clk 0:02:47.2]} 4... Nf6 {[%clk 0:03:04.5]} 5. Nc3 {[%clk 0:02:48.8]}
5... a6 {[%clk 0:03:06.2]} 6. Bg5 {[%clk 0:02:49.6]} 6... Nbd7 {[%clk
0:03:05.9]} 7. Qe2 {[%clk 0:02:49.4]} 7... e6 {[%clk 0:03:05.7]} 8. O-O-O {[%clk
0:02:47.4]} 8... Qc7 {[%clk 0:03:07.1]} 9. h4 {[%clk 0:02:46.6]} 9... b5 {[%clk
0:03:07.4]} 10. a3 {[%clk 0:02:45]} 10... Bb7 {[%clk 0:03:06.3]} 11. Rh3 {[%clk
0:02:45.6]} 11... Be7 {[%clk 0:03:06.4]} 12. g4 {[%clk 0:02:46.1]} 12... Rc8
{[%clk 0:03:01.8]} 13. f4 {[%clk 0:02:45.9]} 13... Nc5 {[%clk 0:02:47.9]} 14.
Bg2 {[%clk 0:02:41.8]} 14... h6 {[%clk 0:02:32.1]} 15. Bxf6 {[%clk 0:02:39.3]}
15... Bxf6 {[%clk 0:02:33.4]} 16. g5 {[%clk 0:02:34.3]} 16... hxg5 {[%clk
0:02:30.6]} 17. hxg5 {[%clk 0:02:35]} 17... Rxh3 {[%clk 0:02:29.7]} 18. Bxh3
{[%clk 0:02:30.1]} 18... Bxd4 {[%clk 0:02:30.6]} 19. Rxd4 {[%clk 0:02:30.4]}
19... Qb6 {[%clk 0:02:31.9]} 20. Qd1 {[%clk 0:02:12.8]} 20... Ke7 {[%clk
0:02:20.4]} 21. g6 {[%clk 0:02:11.2]} 21... Rh8 {[%clk 0:02:07.6]} 22. Bg2
{[%clk 0:01:59.1]} 22... f6 {[%clk 0:01:57.1]} 23. Kb1 {[%clk 0:01:53.8]} 23...
a5 {[%clk 0:01:52.9]} 24. b4 {[%clk 0:01:32.2]} 24... axb4 {[%clk 0:01:48.7]}
25. axb4 {[%clk 0:01:32.9]} 25... Na4 {[%clk 0:01:45.5]} 26. Nxa4 {[%clk
0:01:32]} 26... bxa4 {[%clk 0:01:46.6]} 27. c3 {[%clk 0:01:26.8]} 27... Rh2
{[%clk 0:01:44]} 28. Qg1 {[%clk 0:01:21.9]} 28... Rh6 {[%clk 0:01:43.1]} 29. Bf3
{[%clk 0:01:08.8]} 29... a3 {[%clk 0:01:35.3]} 30. Ka2 {[%clk 0:01:03.7]} 30...
Rh8 {[%clk 0:01:32]} 31. Qf2 {[%clk 0:01:01.3]} 31... Rh3 {[%clk 0:01:25.6]} 32.
Bg2 {[%clk 0:00:59.8]} 32... Rxc3 {[%clk 0:01:23.1]} 33. e5 {[%clk 0:00:45]}
33... Bxg2 {[%clk 0:01:17.5]} 34. exf6+ {[%clk 0:00:35.4]} 34... gxf6 {[%clk
0:01:12.1]} 35. g7 {[%clk 0:00:19.1]} 35... Bd5+ {[%clk 0:01:12.5]} 36. Kb1
{[%clk 0:00:20]} 36... a2+ {[%clk 0:01:10.6]} 37. Kb2 {[%clk 0:00:20.9]} 37...
Rb3+ {[%clk 0:01:11.4]} 38. Kxa2 {[%clk 0:00:19.7]} 38... Rxb4+ {[%clk
0:01:10.7]} 0-1

[Event "*** Titled Tuesday 3|2 Blitz (Early)"]
[Site "Chess.com"]
[Date "2016.12.06"]
[Round "2"]
[White "Zhani-Z"]
[Black "poummba"]
[Result "1-0"]
[WhiteElo "2279"]
[BlackElo "2399"]
[TimeControl "180+2"]
[EndTime "11:20:37 PST"]
[Termination "Zhani-Z won by resignation"]

1. d4 {[%clk 0:03:01.1]} 1... g6 {[%clk 0:03:01]} 2. e4 {[%clk 0:03:00.7]} 2...
d6 {[%clk 0:03:01.8]} 3. Nc3 {[%clk 0:03:01.3]} 3... Bg7 {[%clk 0:03:03.4]} 4.
Bc4 {[%clk 0:03:01.9]} 4... Nf6 {[%clk 0:03:04.5]} 5. Qe2 {[%clk 0:03:01.6]}
5... O-O {[%clk 0:03:05.6]} 6. e5 {[%clk 0:03:01.2]} 6... dxe5 {[%clk
0:02:58.1]} 7. dxe5 {[%clk 0:03:02.1]} 7... Nfd7 {[%clk 0:02:43.5]} 8. e6 {[%clk
0:02:58.8]} 8... fxe6 {[%clk 0:02:39.7]} 9. Bxe6+ {[%clk 0:02:57.4]} 9... Kh8
{[%clk 0:02:40.7]} 10. Nf3 {[%clk 0:02:55.3]} 10... Nc6 {[%clk 0:02:38]} 11. O-O
{[%clk 0:02:35.3]} 11... Nde5 {[%clk 0:02:36.4]} 12. Nxe5 {[%clk 0:02:35.6]}
12... Nxe5 {[%clk 0:02:33.9]} 13. Bxc8 {[%clk 0:02:35.4]} 13... Qxc8 {[%clk
0:02:30.5]} 14. Be3 {[%clk 0:02:16.4]} 14... Qe6 {[%clk 0:02:17.8]} 15. Bd4
{[%clk 0:02:04.1]} 15... Rad8 {[%clk 0:02:02.6]} 16. Rad1 {[%clk 0:02:03.1]}
16... Qf5 {[%clk 0:00:43.2]} 17. Kh1 {[%clk 0:02:00.1]} 17... e6 {[%clk
0:00:28.2]} 18. Ne4 {[%clk 0:01:45.5]} 18... Ng4 {[%clk 0:00:22.8]} 19. Bxg7+
{[%clk 0:01:44.1]} 19... Kxg7 {[%clk 0:00:24.7]} 20. f3 {[%clk 0:01:44.7]} 20...
Nf6 {[%clk 0:00:19.9]} 21. Ng3 {[%clk 0:01:40.4]} 21... Qc5 {[%clk 0:00:14]} 22.
c3 {[%clk 0:01:38.8]} 22... Qb6 {[%clk 0:00:09.6]} 23. Qe5 {[%clk 0:01:15.9]}
23... Kf7 {[%clk 0:00:07.3]} 24. b3 {[%clk 0:01:12.2]} 24... Rd5 {[%clk
0:00:08.4]} 25. Qf4 {[%clk 0:01:05.2]} 25... Kg7 {[%clk 0:00:07.2]} 26. c4
{[%clk 0:00:58.6]} 26... Rxd1 {[%clk 0:00:04.1]} 27. Rxd1 {[%clk 0:00:59]} 27...
Qc6 {[%clk 0:00:04.5]} 28. Qe5 {[%clk 0:00:55.5]} 28... Rf7 {[%clk 0:00:05.8]}
29. Ne4 {[%clk 0:00:53.3]} 29... h6 {[%clk 0:00:07.2]} 30. h4 {[%clk 0:00:51.3]}
30... b6 {[%clk 0:00:07.2]} 31. Rd8 {[%clk 0:00:49.1]} 31... a5 {[%clk
0:00:07.5]} 32. g4 {[%clk 0:00:46.1]} 32... Qb7 {[%clk 0:00:07.4]} 33. g5 {[%clk
0:00:45.3]} 33... hxg5 {[%clk 0:00:08.9]} 34. hxg5 {[%clk 0:00:46.5]} 34... Kh7
{[%clk 0:00:09.7]} 1-0

[Event "*** Titled Tuesday 3|2 Blitz (Early)"]
[Site "Chess.com"]
[Date "2016.12.06"]
[Round "2"]
[White "olgerts_indricans"]
[Black "ZEN-22"]
[Result "1-0"]
[WhiteElo "2341"]
[BlackElo "2213"]
[TimeControl "180+2"]
[EndTime "11:20:55 PST"]
[Termination "olgerts_indricans won by checkmate"]

1. e4 {[%clk 0:03:02]} 1... c5 {[%clk 0:02:57.5]} 2. Nf3 {[%clk 0:03:00.3]} 2...
e6 {[%clk 0:02:58.8]} 3. d4 {[%clk 0:03:01]} 3... cxd4 {[%clk 0:03:00.5]} 4.
Nxd4 {[%clk 0:03:02.9]} 4... Nf6 {[%clk 0:03:02.1]} 5. Nc3 {[%clk 0:03:03.1]}
5... Bb4 {[%clk 0:03:01.6]} 6. e5 {[%clk 0:03:01.5]} 6... Nd5 {[%clk 0:03:01]}
7. Nb5 {[%clk 0:02:53.3]} 7... O-O {[%clk 0:02:55.5]} 8. Bd2 {[%clk 0:02:51.1]}
8... a6 {[%clk 0:02:51]} 9. Nxd5 {[%clk 0:02:51.5]} 9... Bxd2+ {[%clk
0:02:51.2]} 10. Qxd2 {[%clk 0:02:52.2]} 10... axb5 {[%clk 0:02:53.1]} 11. Nc3
{[%clk 0:02:33.7]} 11... b4 {[%clk 0:02:53.9]} 12. Ne4 {[%clk 0:02:34.7]} 12...
Qa5 {[%clk 0:02:51.2]} 13. f4 {[%clk 0:02:28.6]} 13... Nc6 {[%clk 0:02:48.5]}
14. Bd3 {[%clk 0:02:25.9]} 14... f5 {[%clk 0:02:36.1]} 15. Nd6 {[%clk
0:02:17.4]} 15... Nxe5 {[%clk 0:02:33.1]} 16. Nxc8 {[%clk 0:02:09.8]} 16...
Nxd3+ {[%clk 0:02:32.9]} 17. Qxd3 {[%clk 0:02:09.9]} 17... Raxc8 {[%clk
0:02:04.3]} 18. Qxd7 {[%clk 0:02:06.3]} 18... Qb6 {[%clk 0:01:58.8]} 19. O-O-O
{[%clk 0:02:03.9]} 19... b3 {[%clk 0:01:58.7]} 20. axb3 {[%clk 0:01:57.1]} 20...
Qe3+ {[%clk 0:01:55.9]} 21. Kb1 {[%clk 0:01:56.8]} 21... Qxf4 {[%clk 0:01:48.2]}
22. Qxe6+ {[%clk 0:01:54.2]} 22... Kh8 {[%clk 0:01:49]} 23. g3 {[%clk
0:01:50.6]} 23... Qf2 {[%clk 0:01:43.5]} 24. Rc1 {[%clk 0:01:45.7]} 24... f4
{[%clk 0:01:41.6]} 25. gxf4 {[%clk 0:01:38.9]} 25... Qxf4 {[%clk 0:01:41]} 26.
h4 {[%clk 0:01:38.5]} 26... h6 {[%clk 0:01:40.5]} 27. h5 {[%clk 0:01:37]} 27...
Rc6 {[%clk 0:01:38.5]} 28. Qe7 {[%clk 0:01:36.8]} 28... Ra8 {[%clk 0:01:33.2]}
29. Rhf1 {[%clk 0:01:13.5]} 29... Qg4 {[%clk 0:01:10.6]} 30. Rf8+ {[%clk
0:01:11.9]} 30... Rxf8 {[%clk 0:01:10.7]} 31. Qxf8+ {[%clk 0:01:13.8]} 31... Kh7
{[%clk 0:01:11.9]} 32. Qf7 {[%clk 0:01:15.3]} 32... Rf6 {[%clk 0:01:12.3]} 33.
Qxb7 {[%clk 0:01:08.9]} 33... Qxh5 {[%clk 0:01:13.3]} 34. Rg1 {[%clk 0:01:09.1]}
34... Rf7 {[%clk 0:01:05]} 35. Qe4+ {[%clk 0:01:09.3]} 35... g6 {[%clk
0:01:06.5]} 36. b4 {[%clk 0:01:08.9]} 36... Rg7 {[%clk 0:01:06]} 37. Qd3 {[%clk
0:01:06.4]} 37... Qh2 {[%clk 0:01:04.6]} 38. Re1 {[%clk 0:01:03]} 38... Qh4
{[%clk 0:01:03.7]} 39. Rf1 {[%clk 0:01:01.6]} 39... Qxb4 {[%clk 0:01:03.9]} 40.
c3 {[%clk 0:01:01.9]} 40... Qb6 {[%clk 0:00:59.3]} 41. Rh1 {[%clk 0:01:00.1]}
41... Rb7 {[%clk 0:00:58.6]} 42. Qd2 {[%clk 0:00:56.8]} 42... Qc6 {[%clk
0:00:59.5]} 43. Qxh6+ {[%clk 0:00:48]} 43... Kg8 {[%clk 0:00:59.4]} 44. Qh8+
{[%clk 0:00:43.3]} 44... Kf7 {[%clk 0:00:59.7]} 45. Rf1+ {[%clk 0:00:34.6]}
45... Ke6 {[%clk 0:01:00.7]} 46. Rf6+ {[%clk 0:00:34]} 46... Kd5 {[%clk
0:01:00.9]} 47. Rxc6 {[%clk 0:00:35.9]} 47... Kxc6 {[%clk 0:01:01.8]} 48. Qf6+
{[%clk 0:00:37.6]} 48... Kb5 {[%clk 0:01:02.6]} 49. Qxg6 {[%clk 0:00:38]} 49...
Ka4 {[%clk 0:01:04.5]} 50. Qa6+ {[%clk 0:00:37.9]} 50... Kb3 {[%clk 0:01:05.6]}
51. Qa2# {[%clk 0:00:38.7]} 1-0

[Event "*** Titled Tuesday 3|2 Blitz (Early)"]
[Site "Chess.com"]
[Date "2016.12.06"]
[Round "2"]
[White "YuriyKrykun"]
[Black "MyleneFarmer"]
[Result "0-1"]
[WhiteElo "2302"]
[BlackElo "2380"]
[TimeControl "180+2"]
[EndTime "11:21:01 PST"]
[Termination "MyleneFarmer won by resignation"]

1. e4 {[%clk 0:03:02]} 1... c5 {[%clk 0:02:49.1]} 2. Nf3 {[%clk 0:03:02.7]} 2...
d6 {[%clk 0:02:50.4]} 3. Bb5+ {[%clk 0:03:01]} 3... Nc6 {[%clk 0:02:49.4]} 4.
O-O {[%clk 0:03:01.4]} 4... Bd7 {[%clk 0:02:50.7]} 5. Re1 {[%clk 0:02:59.5]}
5... Nf6 {[%clk 0:02:52.1]} 6. c3 {[%clk 0:03:00.3]} 6... a6 {[%clk 0:02:53.4]}
7. Bxc6 {[%clk 0:03:01.3]} 7... Bxc6 {[%clk 0:02:54.3]} 8. d4 {[%clk 0:03:03]}
8... Bxe4 {[%clk 0:02:54.3]} 9. c4 {[%clk 0:02:59.7]} 9... Bc6 {[%clk
0:02:52.3]} 10. d5 {[%clk 0:02:52.3]} 10... Bd7 {[%clk 0:02:52.8]} 11. Nc3
{[%clk 0:02:53.8]} 11... Qc7 {[%clk 0:02:52.9]} 12. Bg5 {[%clk 0:02:53.2]} 12...
O-O-O {[%clk 0:02:52.1]} 13. Qd3 {[%clk 0:02:48.6]} 13... h6 {[%clk 0:02:52.1]}
14. Bxf6 {[%clk 0:02:49.4]} 14... gxf6 {[%clk 0:02:51.9]} 15. a3 {[%clk
0:02:51.1]} 15... e5 {[%clk 0:02:46.1]} 16. b4 {[%clk 0:02:48.9]} 16... f5
{[%clk 0:02:43.9]} 17. Nd2 {[%clk 0:02:49.9]} 17... e4 {[%clk 0:02:43.1]} 18.
Qc2 {[%clk 0:02:50.9]} 18... Bg7 {[%clk 0:02:41.9]} 19. Rab1 {[%clk 0:02:50.7]}
19... Rdg8 {[%clk 0:02:30.1]} 20. bxc5 {[%clk 0:02:49]} 20... dxc5 {[%clk
0:02:26.1]} 21. Na4 {[%clk 0:02:50]} 21... Bd4 {[%clk 0:02:18.4]} 22. Nb6+
{[%clk 0:02:50.6]} 22... Kd8 {[%clk 0:02:18.9]} 23. Nb3 {[%clk 0:02:50.6]} 23...
Qxb6 {[%clk 0:02:02.1]} 24. Nxd4 {[%clk 0:02:50.7]} 24... Qg6 {[%clk 0:02:02.6]}
25. g3 {[%clk 0:02:42.9]} 25... cxd4 {[%clk 0:02:03.6]} 26. Rxb7 {[%clk
0:02:44.4]} 26... h5 {[%clk 0:01:54.5]} 27. Qd2 {[%clk 0:02:39]} 27... h4 {[%clk
0:01:47.4]} 28. Qa5+ {[%clk 0:02:29.5]} 28... Ke7 {[%clk 0:01:45.1]} 29. d6+
{[%clk 0:02:10.9]} 29... Qxd6 {[%clk 0:01:41.6]} 30. Qxf5 {[%clk 0:02:11.2]}
30... Kd8 {[%clk 0:01:27.1]} 31. Qa5+ {[%clk 0:02:08.8]} 31... Kc8 {[%clk
0:01:21.7]} 32. Reb1 {[%clk 0:01:39.4]} 32... hxg3 {[%clk 0:01:22.9]} 33. Rb8+
{[%clk 0:01:32.3]} 33... Qxb8 {[%clk 0:01:23.5]} 34. Rxb8+ {[%clk 0:01:31.8]}
34... Kxb8 {[%clk 0:01:24.9]} 35. Qb6+ {[%clk 0:01:26.8]} 35... Kc8 {[%clk
0:01:24.4]} 36. Qxa6+ {[%clk 0:01:27.4]} 36... Kd8 {[%clk 0:01:25.2]} 37. Qf6+
{[%clk 0:01:27.9]} 37... Ke8 {[%clk 0:01:23.9]} 38. Qe5+ {[%clk 0:01:20.1]}
38... Be6 {[%clk 0:01:22.4]} 39. hxg3 {[%clk 0:01:19.6]} 39... e3 {[%clk
0:01:23.2]} 40. Qxd4 {[%clk 0:01:20.6]} 40... exf2+ {[%clk 0:01:23]} 41. Kxf2
{[%clk 0:01:21.3]} 41... Rh2+ {[%clk 0:01:23.4]} 42. Kg1 {[%clk 0:01:21.8]}
42... Rh3 {[%clk 0:01:19]} 43. c5 {[%clk 0:01:12.1]} 43... Rhxg3+ {[%clk
0:01:13.6]} 44. Kf2 {[%clk 0:01:13.1]} 44... Rg2+ {[%clk 0:01:13.5]} 45. Kf1
{[%clk 0:01:13.9]} 45... Rg1+ {[%clk 0:01:13.4]} 46. Kf2 {[%clk 0:01:10.8]}
46... R8g2+ {[%clk 0:01:14.5]} 47. Kf3 {[%clk 0:01:11.7]} 47... Bg4+ {[%clk
0:01:02.5]} 48. Kf4 {[%clk 0:01:11.7]} 48... Rf1+ {[%clk 0:01:01.5]} 49. Ke5
{[%clk 0:00:53.3]} 49... Re2+ {[%clk 0:01:02.1]} 50. Kd6 {[%clk 0:00:55]} 50...
Rd1 {[%clk 0:01:01.7]} 51. Qxd1 {[%clk 0:00:53]} 51... Re6+ {[%clk 0:01:01.5]}
52. Kc7 {[%clk 0:00:54.2]} 52... Bxd1 {[%clk 0:01:02.6]} 53. c6 {[%clk
0:00:56.1]} 53... Ba4 {[%clk 0:01:03.2]} 0-1